[Event "EYCC Girls-U16 2019"]
[Site "Bratislava"]
[Date "2019.08.02"]
[Round "1.7"]
[White "Ruzic, Pia Marie"]
[Black "Eizaguerri Floris, Maria"]
[Result "0-1"]
[ECO "A25"]
[WhiteElo "1830"]
[BlackElo "2099"]
[Annotator "NA"]
[PlyCount "112"]
[EventDate "2019.08.02"]
[EventType "swiss"]
[EventCountry "SVK"]
[SourceTitle "playchess.com"]
[Source "ChessBase"]
[SourceQuality "1"]
[TimeControl "40/5400+30:1800+30"]

1. c4 {[%emt 0:00:00]} e5 {[%emt 0:00:00]} 2. Nc3 {[%emt 0:00:18]} Nc6 {[%emt 0:00:00]} 3. g3 {[%emt 0:00:33]} Nf6 {[%emt 0:00:16]} 4. Bg2 {[%emt 0:00:30]} Bc5 {[%emt 0:00:14]} 5. e3 {[%emt 0:00:51]} d5 {[%emt 0:00:44]} 6. cxd5 {[%emt 0:02:01]} Nb4 {[%emt 0:00:07]} 7. d4 {[%emt 0:04:39]} exd4 {[%emt 0:00:08]} 8. exd4 {[%emt 0:00:11]} Be7 {[%emt 0:00:08]} 9. Nge2 {[%emt 0:01:17]} Nbxd5 {[%emt 0:00:31]} 10. O-O {[%emt 0:00:20]} Be6 {[%emt 0:03:45]} 11. Nf4 {[%emt 0:03:36]} Nxf4 {[%emt 0:02:41]} 12. Bxf4 {[%emt 0:03:02]} c6 {[%emt 0:00:14]} 13. Re1 {[%emt 0:13:24]} O-O {[%emt 0:03:11]} 14. Qd2 {[%emt 0:15:43]} Qb6 {[%emt 0:17:31]} 15. Rad1 {[%emt 0:05:41]} Rad8 {[%emt 0:02:17]} 16. Qe2 {[%emt 0:15:44]} Rfe8 {[%emt 0:09:33]} 17. Be5 {[%emt 0:01:55]} Nd5 {[%emt 0:16:30]} 18. Nxd5 {[%emt 0:05:12]} Bxd5 {[%emt 0:00:29]} 19. Bxd5 {[%emt 0:00:08]} cxd5 {[%emt 0:01:51]} 20. Qg4 {[%emt 0:04:02]} Bf8 {[%emt 0:05:12]} 21. Re2 {[%emt 0:03:19]} Re6 {[%emt 0:08:44]} 22. Rc2 {[%emt 0:01:01]} Rde8 {[%emt 0:02:58]} 23. Kg2 {[%emt 0:04:38]} Qa6 {[%emt 0:05:18]} 24. Qf3 {[%emt 0:01:45]} f6 {[%emt 0:03:33]} 25. Bf4 {[%emt 0:01:06]} Qb5 {[%emt 0:03:52]} 26. Be3 {[%emt 0:01:10]} Rc6 {[%emt 0:07:19]} 27. Rxc6 {[%emt 0:02:39]} Qxc6 {[%emt 0:00:04]} 28. Rc1 {[%emt 0:00:16]} Qd7 {[%emt 0:00:57]} 29. Bf4 {[%emt 0:02:15]} Qb5 {[%emt 0:00:42]} 30. a4 {[%emt 0:02:21]} Qd7 {[%emt 0:03:40]} 31. Rc7 {[%emt 0:00:19]} Qd8 {[%emt 0:00:04]} 32. Rxb7 {[%emt 0:00:44]} Re4 {[%emt 0:00:36]} 33. Rb8 {[%emt 0:01:21]} Qe7 {[%emt 0:00:30]} 34. Be3 {[%emt 0:00:57]} Qc7 {[%emt 0:01:19]} 35. Rb5 {[%emt 0:00:56]} Qd7 {[%emt 0:00:24]} 36. Qh5 {[%emt 0:00:55]} f5 {[%emt 0:00:40]} 37. Rb8 {[%emt 0:00:17]} g6 {[%emt 0:01:14]} 38. Bh6 {[%emt 0:01:01]} Qd6 {[%emt 0:00:35]} 39. Rxf8+ {[%emt 0:01:31]} Qxf8 {[%emt 0:00:05]} 40. Bxf8 {[%emt 0:01:17]} gxh5 {[%emt 0:00:04]} 41. Bc5 {[%emt 0:30:05]} a6 {[%emt 0:02:51]} 42. b4 {[%emt 0:00:00]} Kf7 {[%emt 0:04:17]} 43. b5 {[%emt 0:00:00]} axb5 {[%emt 0:00:38]} 44. axb5 {[%emt 0:00:00]} Ke6 {[%emt 0:00:22]} 45. h4 {[%emt 0:00:00]} f4 {[%emt 0:02:47]} 46. Kf3 {[%emt 0:00:00]} fxg3 {[%emt 0:01:06]} 47. Kxg3 {[%emt 0:00:00]} Rg4+ {[%emt 0:00:08]} 48. Kh3 {[%emt 0:00:00]} Rg1 {[%emt 0:05:31]} 49. b6 {[%emt 0:00:00]} Rb1 {[%emt 0:03:51]} 50. Kg3 {[%emt 0:00:00]} Kf5 {[%emt 0:00:05]} 51. f3 {[%emt 0:00:00]} Rb2 {[%emt 0:01:09]} 52. Kh3 {[%emt 0:00:00]} Kf4 {[%emt 0:00:33]} 53. Bd6+ {[%emt 0:00:00]} Kxf3 {[%emt 0:00:10]} 54. Bc7 {[%emt 0:00:00]} Ke4 {[%emt 0:00:21]} 55. Bd8 {[%emt 0:00:00]} Rb3+ {[%emt 0:00:06]} 56. Kg2 {[%emt 0:00:00]} Kxd4 {[%emt 0:00:06]} 0-1

[Event "EYCC Girls-U16 2019"]
[Site "Bratislava"]
[Date "2019.08.02"]
[Round "1.8"]
[White "Lehaci, Miruna-Daria"]
[Black "Czarnecka, Lidia"]
[Result "1/2-1/2"]
[ECO "B81"]
[WhiteElo "2201"]
[BlackElo "1731"]
[Annotator "NA"]
[PlyCount "83"]
[EventDate "2019.08.02"]
[EventType "swiss"]
[EventCountry "SVK"]
[SourceTitle "playchess.com"]
[Source "ChessBase"]
[SourceQuality "1"]
[TimeControl "40/5400+30:1800+30"]

1. e4 {[%emt 0:00:00]} c5 {[%emt 0:00:12]} 2. Nf3 {[%emt 0:00:00]} e6 {[%emt 0:00:36]} 3. d4 {[%emt 0:00:00]} cxd4 {[%emt 0:01:16]} 4. Nxd4 {[%emt 0:00:04]} Nf6 {[%emt 0:00:51]} 5. Nc3 {[%emt 0:00:10]} d6 {[%emt 0:02:45]} 6. g4 {[%emt 0:06:36]} h6 {[%emt 0:00:18]} 7. Rg1 {[%emt 0:00:22]} Nc6 {[%emt 0:01:58]} 8. Be3 {[%emt 0:00:37]} e5 {[%emt 0:09:02]} 9. Nb3 {[%emt 0:03:46]} Be6 {[%emt 0:00:49]} 10. Qe2 {[%emt 0:05:57]} Qc8 {[%emt 0:16:35]} 11. f3 {[%emt 0:02:58]} d5 {[%emt 0:02:42]} 12. exd5 {[%emt 0:02:16]} Nxd5 {[%emt 0:00:20]} 13. Nxd5 {[%emt 0:01:38]} Bxd5 {[%emt 0:00:21]} 14. O-O-O {[%emt 0:01:02]} Be6 {[%emt 0:03:52]} 15. f4 {[%emt 0:06:00]} Qc7 {[%emt 0:07:31]} 16. f5 {[%emt 0:13:46]} Bxb3 {[%emt 0:01:20]} 17. axb3 {[%emt 0:00:05]} Bd6 {[%emt 0:01:15]} 18. Kb1 {[%emt 0:08:39]} O-O-O {[%emt 0:00:27]} 19. Bg2 {[%emt 0:01:12]} Kb8 {[%emt 0:02:43]} 20. Bf2 {[%emt 0:10:37]} Nd4 {[%emt 0:10:34]} 21. Bxd4 {[%emt 0:05:25]} exd4 {[%emt 0:00:10]} 22. Rxd4 {[%emt 0:00:19]} Rhe8 {[%emt 0:05:26]} 23. Qf3 {[%emt 0:06:11]} Bxh2 {[%emt 0:01:53]} 24. Rgd1 {[%emt 0:00:41]} Rxd4 {[%emt 0:03:36]} 25. Rxd4 {[%emt 0:00:04]} Be5 {[%emt 0:01:03]} 26. Rd5 {[%emt 0:01:03]} Bf6 {[%emt 0:02:19]} 27. Rb5 {[%emt 0:03:46]} Re7 {[%emt 0:00:31]} 28. Qd3 {[%emt 0:00:45]} Rd7 {[%emt 0:01:46]} 29. Qe2 {[%emt 0:02:11]} Re7 {[%emt 0:00:43]} 30. Qd2 {[%emt 0:00:37]} Rd7 {[%emt 0:02:52]} 31. Qb4 {[%emt 0:00:13]} Qc8 {[%emt 0:00:23]} 32. Rc5 {[%emt 0:05:23]} Qd8 {[%emt 0:01:43]} 33. Qf4+ {[%emt 0:00:05]} Ka8 {[%emt 0:00:09]} 34. Qc4 {[%emt 0:02:25]} Kb8 {[%emt 0:00:39]} 35. Qe4 {[%emt 0:02:53]} Qe7 {[%emt 0:01:41]} 36. Qf4+ {[%emt 0:00:38]} Qd6 {[%emt 0:00:41]} 37. Qc4 {[%emt 0:00:17]} Rc7 {[%emt 0:03:46]} 38. Rxc7 {[%emt 0:04:02]} Qxc7 {[%emt 0:00:08]} 39. Qb5 {[%emt 0:01:00]} Qe7 {[%emt 0:01:12]} 40. c4 {[%emt 0:00:47]} a6 {[%emt 0:01:40]} 41. Qd5 {[%emt 0:30:06]} Bg5 {[%emt 0:32:03]} 42. Ka2 {[%emt 0:00:40]} 1/2-1/2

[Event "EYCC Girls-U16 2019"]
[Site "Bratislava"]
[Date "2019.08.02"]
[Round "1.9"]
[White "Dejanovic, Tereza"]
[Black "Katkov, Michelle"]
[Result "1/2-1/2"]
[ECO "C80"]
[WhiteElo "1834"]
[BlackElo "2129"]
[Annotator "NA"]
[PlyCount "35"]
[EventDate "2019.08.02"]
[EventType "swiss"]
[EventCountry "SVK"]
[SourceTitle "playchess.com"]
[Source "ChessBase"]
[SourceQuality "1"]
[TimeControl "40/5400+30:1800+30"]

1. e4 {[%emt 0:00:00]} e5 {[%emt 0:00:00]} 2. Nf3 {[%emt 0:00:00]} Nc6 {[%emt 0:00:00]} 3. Bb5 {[%emt 0:00:00]} a6 {[%emt 0:00:38]} 4. Ba4 {[%emt 0:00:00]} Nf6 {[%emt 0:00:05]} 5. O-O {[%emt 0:00:00]} Nxe4 {[%emt 0:00:20]} 6. Re1 {[%emt 0:00:13]} Nc5 {[%emt 0:03:38]} 7. Nc3 {[%emt 0:00:25]} Nxa4 {[%emt 0:04:13]} 8. Nxe5 {[%emt 0:00:08]} Be7 {[%emt 0:04:40]} 9. Nd5 {[%emt 0:00:09]} O-O {[%emt 0:04:38]} 10. Nxc6 {[%emt 0:00:09]} dxc6 {[%emt 0:02:51]} 11. Nxe7+ {[%emt 0:00:07]} Kh8 {[%emt 0:00:08]} 12. Qh5 {[%emt 0:01:18]} Qd4 {[%emt 0:11:49]} 13. d3 {[%emt 0:15:27]} Be6 {[%emt 0:10:50]} 14. Rxe6 {[%emt 0:02:36]} fxe6 {[%emt 0:00:05]} 15. Ng6+ {[%emt 0:00:03]} Kg8 {[%emt 0:00:04]} 16. Ne7+ {[%emt 0:03:05]} Kh8 {[%emt 0:00:06]} 17. Ng6+ {[%emt 0:00:06]} Kg8 {[%emt 0:00:03]} 18. Ne7+ {[%emt 0:02:02]} 1/2-1/2

[Event "EYCC Girls-U16 2019"]
[Site "Bratislava"]
[Date "2019.08.02"]
[Round "1.10"]
[White "Loskutova, Viktoriya"]
[Black "Fock, Amina"]
[Result "1-0"]
[ECO "B52"]
[WhiteElo "2019"]
[BlackElo "1817"]
[Annotator "NA"]
[PlyCount "55"]
[EventDate "2019.08.02"]
[EventType "swiss"]
[EventCountry "SVK"]
[SourceTitle "playchess.com"]
[Source "ChessBase"]
[SourceQuality "1"]
[TimeControl "40/5400+30:1800+30"]

1. e4 {[%emt 0:00:00]} c5 {[%emt 0:00:00]} 2. Nf3 {[%emt 0:00:00]} d6 {[%emt 0:00:00]} 3. Bb5+ {[%emt 0:00:00]} Bd7 {[%emt 0:00:00]} 4. Bxd7+ {[%emt 0:00:00]} Qxd7 {[%emt 0:00:04]} 5. c4 {[%emt 0:03:14]} e5 {[%emt 0:02:00]} 6. O-O {[%emt 0:01:10]} Nc6 {[%emt 0:06:14]} 7. Nc3 {[%emt 0:02:06]} g6 {[%emt 0:01:20]} 8. d3 {[%emt 0:04:24]} h6 {[%emt 0:07:19]} 9. Nd5 {[%emt 0:13:43]} Bg7 {[%emt 0:01:34]} 10. Bd2 {[%emt 0:03:11]} Nge7 {[%emt 0:07:08]} 11. a3 {[%emt 0:02:48]} f5 {[%emt 0:11:33]} 12. b4 {[%emt 0:07:15]} b6 {[%emt 0:06:23]} 13. Bc3 {[%emt 0:16:14]} Kf7 {[%emt 0:21:44]} 14. Nd2 {[%emt 0:18:19]} f4 {[%emt 0:04:34]} 15. Rb1 {[%emt 0:11:35]} Rab8 {[%emt 0:04:31]} 16. b5 {[%emt 0:06:46]} Nd8 {[%emt 0:01:09]} 17. a4 {[%emt 0:00:13]} Ne6 {[%emt 0:04:11]} 18. Ra1 {[%emt 0:01:51]} Ra8 {[%emt 0:03:33]} 19. Ra2 {[%emt 0:01:49]} Qb7 {[%emt 0:01:12]} 20. a5 {[%emt 0:00:42]} Bf6 {[%emt 0:02:15]} 21. Qe2 {[%emt 0:01:08]} h5 {[%emt 0:03:45]} 22. Rfa1 {[%emt 0:00:04]} Nxd5 {[%emt 0:02:45]} 23. exd5 {[%emt 0:01:58]} Nd4 {[%emt 0:02:32]} 24. Bxd4 {[%emt 0:00:06]} cxd4 {[%emt 0:00:05]} 25. Ne4 {[%emt 0:00:56]} Be7 {[%emt 0:01:16]} 26. Qb2 {[%emt 0:01:02]} a6 {[%emt 0:01:38]} 27. axb6 {[%emt 0:00:22]} axb5 {[%emt 0:00:23]} 28. Qxb5 {[%emt 0:00:40]} 1-0

[Event "EYCC Girls-U16 2019"]
[Site "Bratislava"]
[Date "2019.08.02"]
[Round "1.11"]
[White "Zarebska, Lena"]
[Black "Malicka, Maria"]
[Result "0-1"]
[ECO "C92"]
[WhiteElo "1773"]
[BlackElo "2115"]
[Annotator "NA"]
[PlyCount "120"]
[EventDate "2019.08.02"]
[EventType "swiss"]
[EventCountry "SVK"]
[SourceTitle "playchess.com"]
[Source "ChessBase"]
[SourceQuality "1"]
[TimeControl "40/5400+30:1800+30"]

1. e4 {[%emt 0:00:00]} e5 {[%emt 0:00:00]} 2. Nf3 {[%emt 0:00:00]} Nc6 {[%emt 0:00:00]} 3. Bb5 {[%emt 0:00:00]} a6 {[%emt 0:00:07]} 4. Ba4 {[%emt 0:00:04]} Nf6 {[%emt 0:00:07]} 5. O-O {[%emt 0:00:06]} Be7 {[%emt 0:00:18]} 6. Re1 {[%emt 0:00:31]} b5 {[%emt 0:00:07]} 7. Bb3 {[%emt 0:00:06]} d6 {[%emt 0:00:06]} 8. c3 {[%emt 0:00:32]} O-O {[%emt 0:00:07]} 9. h3 {[%emt 0:00:06]} Bb7 {[%emt 0:00:10]} 10. d4 {[%emt 0:04:15]} Re8 {[%emt 0:00:06]} 11. Nbd2 {[%emt 0:01:25]} Bf8 {[%emt 0:00:14]} 12. d5 {[%emt 0:00:44]} Nb8 {[%emt 0:00:38]} 13. Nf1 {[%emt 0:00:46]} Nbd7 {[%emt 0:00:37]} 14. Ng3 {[%emt 0:02:42]} Nc5 {[%emt 0:00:38]} 15. Bc2 {[%emt 0:01:07]} c6 {[%emt 0:00:10]} 16. dxc6 {[%emt 0:09:12]} Bxc6 {[%emt 0:00:05]} 17. Qe2 {[%emt 0:15:46]} h6 {[%emt 0:17:48]} 18. Nh2 {[%emt 0:04:01]} d5 {[%emt 0:10:25]} 19. Ng4 {[%emt 0:13:38]} Ncxe4 {[%emt 0:09:20]} 20. Nxe4 {[%emt 0:02:25]} Nxe4 {[%emt 0:02:27]} 21. Qf3 {[%emt 0:13:09]} Ng5 {[%emt 0:15:32]} 22. Bxg5 {[%emt 0:03:04]} Qxg5 {[%emt 0:01:21]} 23. h4 {[%emt 0:01:52]} e4 {[%emt 0:17:49]} 24. hxg5 {[%emt 0:05:46]} exf3 {[%emt 0:00:04]} 25. gxh6 {[%emt 0:00:13]} Rxe1+ {[%emt 0:01:07]} 26. Rxe1 {[%emt 0:00:04]} fxg2 {[%emt 0:04:18]} 27. Ne5 {[%emt 0:01:47]} Be8 {[%emt 0:00:29]} 28. h7+ {[%emt 0:00:42]} Kh8 {[%emt 0:00:03]} 29. Kxg2 {[%emt 0:04:04]} g6 {[%emt 0:01:30]} 30. Bb3 {[%emt 0:02:16]} Rd8 {[%emt 0:02:46]} 31. Ng4 {[%emt 0:00:23]} Bg7 {[%emt 0:01:38]} 32. Bxd5 {[%emt 0:01:34]} Rxd5 {[%emt 0:03:37]} 33. Rxe8+ {[%emt 0:00:04]} Kxh7 {[%emt 0:00:03]} 34. Kf3 {[%emt 0:03:45]} f5 {[%emt 0:01:48]} 35. Nh2 {[%emt 0:02:10]} Rd1 {[%emt 0:03:59]} 36. Ke2 {[%emt 0:05:16]} Rb1 {[%emt 0:00:47]} 37. b3 {[%emt 0:01:32]} Rb2+ {[%emt 0:01:11]} 38. Ke3 {[%emt 0:01:13]} Bxc3 {[%emt 0:01:39]} 39. Re7+ {[%emt 0:00:12]} Kh6 {[%emt 0:00:50]} 40. Nf3 {[%emt 0:00:00]} Rxa2 {[%emt 0:00:00]} 41. Re6 {[%emt 0:02:34]} Kh5 {[%emt 0:12:02]} 42. Rc6 {[%emt 0:01:00]} Bg7 {[%emt 0:02:57]} 43. Ng1 {[%emt 0:04:07]} Ra3 {[%emt 0:07:13]} 44. Kf4 {[%emt 0:02:35]} Rxb3 {[%emt 0:03:53]} 45. Rxa6 {[%emt 0:00:14]} Rb4+ {[%emt 0:02:08]} 46. Kf3 {[%emt 0:00:26]} g5 {[%emt 0:00:38]} 47. Ne2 {[%emt 0:00:28]} Rb3+ {[%emt 0:03:05]} 48. Kg2 {[%emt 0:00:15]} f4 {[%emt 0:00:09]} 49. Kh2 {[%emt 0:00:51]} Rb2 {[%emt 0:00:59]} 50. Re6 {[%emt 0:00:07]} Kg4 {[%emt 0:00:23]} 51. Kg1 {[%emt 0:01:08]} Kf3 {[%emt 0:00:52]} 52. Re7 {[%emt 0:00:42]} Bf6 {[%emt 0:01:13]} 53. Re6 {[%emt 0:00:05]} Rxe2 {[%emt 0:00:40]} 54. Rxf6 {[%emt 0:00:05]} Rxf2 {[%emt 0:00:55]} 55. Rf5 {[%emt 0:00:31]} g4 {[%emt 0:01:43]} 56. Rxb5 {[%emt 0:00:04]} g3 {[%emt 0:00:10]} 57. Rb3+ {[%emt 0:00:21]} Kg4 {[%emt 0:00:10]} 58. Rb4 {[%emt 0:01:07]} Ra2 {[%emt 0:00:43]} 59. Rc4 {[%emt 0:00:19]} Kh3 {[%emt 0:01:01]} 60. Rc1 {[%emt 0:00:40]} f3 {[%emt 0:00:39]} 0-1

[Event "EYCC Girls-U16 2019"]
[Site "Bratislava"]
[Date "2019.08.02"]
[Round "1.12"]
[White "Duran, Esma Doga"]
[Black "Rzali, Sabina"]
[Result "1-0"]
[ECO "A06"]
[WhiteElo "2096"]
[BlackElo "1691"]
[Annotator "NA"]
[PlyCount "51"]
[EventDate "2019.08.02"]
[EventType "swiss"]
[EventCountry "SVK"]
[SourceTitle "playchess.com"]
[Source "ChessBase"]
[SourceQuality "1"]
[TimeControl "40/5400+30:1800+30"]

1. Nf3 {[%emt 0:00:00]} d5 {[%emt 0:00:00]} 2. g3 {[%emt 0:00:52]} Nf6 {[%emt 0:00:00]} 3. Bg2 {[%emt 0:00:06]} e6 {[%emt 0:00:00]} 4. O-O {[%emt 0:00:11]} c5 {[%emt 0:00:00]} 5. d4 {[%emt 0:00:07]} Be7 {[%emt 0:00:15]} 6. c4 {[%emt 0:03:52]} dxc4 {[%emt 0:01:34]} 7. Qa4+ {[%emt 0:01:24]} Nbd7 {[%emt 0:02:32]} 8. Rd1 {[%emt 0:12:05]} O-O {[%emt 0:05:47]} 9. Qxc4 {[%emt 0:00:21]} Qb6 {[%emt 0:09:53]} 10. Nc3 {[%emt 0:01:50]} cxd4 {[%emt 0:03:37]} 11. Nxd4 {[%emt 0:01:01]} Nc5 {[%emt 0:06:36]} 12. b4 {[%emt 0:10:35]} Na6 {[%emt 0:04:27]} 13. b5 {[%emt 0:02:16]} Nc5 {[%emt 0:02:58]} 14. Ba3 {[%emt 0:11:09]} Re8 {[%emt 0:08:03]} 15. Rac1 {[%emt 0:07:19]} e5 {[%emt 0:25:46]} 16. Nd5 {[%emt 0:05:53]} Nxd5 {[%emt 0:01:11]} 17. Bxd5 {[%emt 0:00:02]} Ne6 {[%emt 0:02:28]} 18. Nxe6 {[%emt 0:15:55]} fxe6 {[%emt 0:05:24]} 19. Bxe7 {[%emt 0:01:13]} exd5 {[%emt 0:02:00]} 20. Qxd5+ {[%emt 0:01:48]} Be6 {[%emt 0:00:37]} 21. Qxe5 {[%emt 0:03:27]} Bxa2 {[%emt 0:06:19]} 22. Rd6 {[%emt 0:17:42]} Qa5 {[%emt 0:00:32]} 23. Rd7 {[%emt 0:00:17]} Qb6 {[%emt 0:08:55]} 24. Rcc7 {[%emt 0:00:58]} Qe6 {[%emt 0:01:04]} 25. Qb2 {[%emt 0:00:48]} Bd5 {[%emt 0:02:00]} 26. Bf8 {[%emt 0:00:45]} 1-0

[Event "EYCC Girls-U16 2019"]
[Site "Bratislava"]
[Date "2019.08.02"]
[Round "1.13"]
[White "Walterova, Ema"]
[Black "Ilyina, Lada"]
[Result "0-1"]
[ECO "B00"]
[WhiteElo "1761"]
[BlackElo "2048"]
[Annotator "NA"]
[PlyCount "124"]
[EventDate "2019.08.02"]
[EventType "swiss"]
[EventCountry "SVK"]
[SourceTitle "playchess.com"]
[Source "ChessBase"]
[SourceQuality "1"]
[TimeControl "40/5400+30:1800+30"]

1. e4 {[%emt 0:00:00]} d6 {[%emt 0:00:00]} 2. d4 {[%emt 0:00:00]} g6 {[%emt 0:00:00]} 3. Nf3 {[%emt 0:00:00]} Bg7 {[%emt 0:00:00]} 4. b3 {[%emt 0:00:41]} Nf6 {[%emt 0:01:34]} 5. Nc3 {[%emt 0:00:36]} O-O {[%emt 0:04:52]} 6. Bb2 {[%emt 0:00:36]} Nbd7 {[%emt 0:00:44]} 7. Be2 {[%emt 0:02:41]} c5 {[%emt 0:03:10]} 8. O-O {[%emt 0:03:01]} cxd4 {[%emt 0:02:06]} 9. Nxd4 {[%emt 0:13:42]} Nc5 {[%emt 0:00:08]} 10. f3 {[%emt 0:06:24]} h5 {[%emt 0:10:09]} 11. Bc4 {[%emt 0:12:59]} Ne6 {[%emt 0:11:27]} 12. Nce2 {[%emt 0:11:01]} Nxd4 {[%emt 0:03:05]} 13. Bxd4 {[%emt 0:03:42]} Qa5 {[%emt 0:09:27]} 14. Kh1 {[%emt 0:09:50]} Bd7 {[%emt 0:11:43]} 15. Bc3 {[%emt 0:05:40]} Qc7 {[%emt 0:05:06]} 16. a4 {[%emt 0:09:10]} b6 {[%emt 0:06:09]} 17. Qd2 {[%emt 0:03:29]} a6 {[%emt 0:01:04]} 18. Rfd1 {[%emt 0:02:58]} b5 {[%emt 0:02:28]} 19. axb5 {[%emt 0:01:28]} Bxb5 {[%emt 0:03:00]} 20. Bxb5 {[%emt 0:01:07]} axb5 {[%emt 0:00:02]} 21. Nd4 {[%emt 0:02:17]} Qb7 {[%emt 0:00:40]} 22. Bb4 {[%emt 0:03:37]} Nd7 {[%emt 0:00:54]} 23. Bc3 {[%emt 0:05:49]} Nc5 {[%emt 0:03:27]} 24. Ne2 {[%emt 0:00:15]} Rxa1 {[%emt 0:06:10]} 25. Rxa1 {[%emt 0:00:02]} b4 {[%emt 0:01:20]} 26. Bxg7 {[%emt 0:00:45]} Kxg7 {[%emt 0:00:01]} 27. Qd4+ {[%emt 0:00:38]} Kh7 {[%emt 0:00:01]} 28. Nf4 {[%emt 0:00:52]} Ra8 {[%emt 0:06:02]} 29. Rxa8 Qxa8 {[%emt 0:00:01]} 30. Nd5 {[%emt 0:01:03]} Ne6 {[%emt 0:00:14]} 31. Qf2 {[%emt 0:00:28]} Qa1+ {[%emt 0:03:55]} 32. Qg1 {[%emt 0:00:08]} Qb2 {[%emt 0:00:02]} 33. Qd1 {[%emt 0:00:57]} Nd4 {[%emt 0:03:00]} 34. Nxb4 {[%emt 0:00:21]} e6 {[%emt 0:00:31]} 35. Kg1 {[%emt 0:00:39]} Qc3 {[%emt 0:00:11]} 36. Na2 {[%emt 0:00:30]} Qc5 {[%emt 0:02:29]} 37. Kf1 {[%emt 0:00:30]} Nxc2 {[%emt 0:00:04]} 38. Qd2 {[%emt 0:00:33]} Qb5+ {[%emt 0:01:20]} 39. Kf2 {[%emt 0:00:28]} Qxb3 {[%emt 0:00:00]} 40. Nc1 {[%emt 0:00:00]} Qb6+ {[%emt 0:00:00]} 41. Kg3 {[%emt 0:05:41]} Qc7 {[%emt 0:01:18]} 42. Qf4 {[%emt 0:04:19]} Kg7 {[%emt 0:01:39]} 43. Ne2 {[%emt 0:02:47]} Qc4 {[%emt 0:09:59]} 44. Qd2 {[%emt 0:05:19]} d5 {[%emt 0:05:53]} 45. exd5 {[%emt 0:10:45]} exd5 {[%emt 0:00:09]} 46. Qc3+ {[%emt 0:02:00]} Qxc3 {[%emt 0:00:06]} 47. Nxc3 {[%emt 0:00:05]} d4 {[%emt 0:00:02]} 48. Ne4 {[%emt 0:01:14]} f5 {[%emt 0:00:34]} 49. Nd2 {[%emt 0:00:19]} Kf6 {[%emt 0:01:45]} 50. f4 {[%emt 0:02:30]} Ke6 {[%emt 0:01:55]} 51. Kh4 {[%emt 0:00:53]} Ne3 {[%emt 0:01:49]} 52. Kg3 {[%emt 0:00:27]} Kd5 {[%emt 0:00:24]} 53. Kf3 {[%emt 0:00:27]} Nc4 {[%emt 0:01:11]} 54. Nb3 d3 {[%emt 0:00:18]} 55. g3 {[%emt 0:01:08]} Nb2 {[%emt 0:01:47]} 56. Ke3 {[%emt 0:00:30]} Kc4 {[%emt 0:00:05]} 57. Nc1 {[%emt 0:00:25]} Kc3 {[%emt 0:00:50]} 58. Na2+ {[%emt 0:00:09]} Kb3 {[%emt 0:00:08]} 59. Nc1+ {[%emt 0:00:26]} Kc2 {[%emt 0:00:04]} 60. Na2 {[%emt 0:00:27]} Nc4+ {[%emt 0:00:35]} 61. Kf2 {[%emt 0:00:46]} d2 {[%emt 0:00:26]} 62. Nb4+ {[%emt 0:00:05]} Kb3 {[%emt 0:00:06]} 0-1

[Event "EYCC Girls-U16 2019"]
[Site "Bratislava"]
[Date "2019.08.02"]
[Round "1.14"]
[White "Filippova, Margarita"]
[Black "Avelino, Camila Biscaya"]
[Result "1-0"]
[ECO "E91"]
[WhiteElo "2029"]
[BlackElo "1803"]
[Annotator "NA"]
[PlyCount "71"]
[EventDate "2019.08.02"]
[EventType "swiss"]
[EventCountry "SVK"]
[SourceTitle "playchess.com"]
[Source "ChessBase"]
[SourceQuality "1"]
[TimeControl "40/5400+30:1800+30"]

1. d4 {[%emt 0:00:00]} Nf6 {[%emt 0:00:28]} 2. c4 {[%emt 0:00:00]} g6 {[%emt 0:00:35]} 3. Nc3 {[%emt 0:00:00]} Bg7 {[%emt 0:01:06]} 4. e4 {[%emt 0:00:00]} d6 {[%emt 0:01:00]} 5. Nf3 {[%emt 0:00:05]} O-O {[%emt 0:00:47]} 6. Be2 {[%emt 0:00:07]} Nbd7 {[%emt 0:01:34]} 7. O-O {[%emt 0:00:17]} e5 {[%emt 0:01:14]} 8. Qc2 {[%emt 0:00:13]} c6 {[%emt 0:04:42]} 9. Rd1 {[%emt 0:00:44]} Qe7 {[%emt 0:03:06]} 10. d5 {[%emt 0:03:07]} c5 {[%emt 0:24:25]} 11. Rb1 {[%emt 0:02:21]} h6 {[%emt 0:06:53]} 12. b4 {[%emt 0:05:32]} cxb4 {[%emt 0:04:11]} 13. Rxb4 {[%emt 0:00:11]} Nc5 {[%emt 0:04:29]} 14. Be3 {[%emt 0:03:53]} Na6 {[%emt 0:13:37]} 15. Rb5 {[%emt 0:10:46]} Ng4 {[%emt 0:00:43]} 16. Bc1 {[%emt 0:02:45]} f5 {[%emt 0:01:01]} 17. h3 {[%emt 0:02:19]} Nf6 {[%emt 0:01:22]} 18. Nh4 {[%emt 0:05:33]} Qf7 {[%emt 0:06:20]} 19. exf5 {[%emt 0:06:49]} Ne8 {[%emt 0:11:39]} 20. Nxg6 {[%emt 0:04:49]} Bxf5 {[%emt 0:05:57]} 21. Qxf5 {[%emt 0:00:50]} Qxf5 {[%emt 0:01:09]} 22. Ne7+ {[%emt 0:00:06]} Kh8 {[%emt 0:00:16]} 23. Nxf5 {[%emt 0:00:07]} Rxf5 {[%emt 0:00:05]} 24. Rxb7 {[%emt 0:04:48]} Nc5 {[%emt 0:00:29]} 25. Rb1 {[%emt 0:00:49]} Nc7 {[%emt 0:02:31]} 26. Be3 {[%emt 0:00:52]} N7a6 {[%emt 0:01:32]} 27. Nb5 {[%emt 0:02:57]} Bf8 {[%emt 0:00:31]} 28. Bg4 {[%emt 0:01:00]} Rf7 {[%emt 0:00:58]} 29. Rf1 {[%emt 0:02:24]} Rd8 {[%emt 0:01:11]} 30. f4 {[%emt 0:01:05]} exf4 {[%emt 0:00:04]} 31. Bxf4 {[%emt 0:00:43]} Nd3 {[%emt 0:00:54]} 32. Be3 {[%emt 0:01:51]} Re7 {[%emt 0:00:17]} 33. Bxa7 {[%emt 0:02:01]} Bg7 {[%emt 0:00:47]} 34. Bd4 {[%emt 0:01:17]} Bxd4+ {[%emt 0:00:18]} 35. Nxd4 {[%emt 0:00:06]} Nac5 {[%emt 0:00:14]} 36. Nc6 {[%emt 0:00:24]} 1-0

[Event "EYCC Girls-U16 2019"]
[Site "Bratislava"]
[Date "2019.08.02"]
[Round "1.15"]
[White "Taragelova, Martina"]
[Black "Djidjeli, Sarah"]
[Result "1/2-1/2"]
[ECO "B32"]
[WhiteElo "1719"]
[BlackElo "2017"]
[Annotator "NA"]
[PlyCount "49"]
[EventDate "2019.08.02"]
[EventType "swiss"]
[EventCountry "SVK"]
[SourceTitle "playchess.com"]
[Source "ChessBase"]
[SourceQuality "1"]
[TimeControl "40/5400+30:1800+30"]

1. e4 {[%emt 0:00:00]} c5 {[%emt 0:00:00]} 2. Nf3 {[%emt 0:00:00]} Nc6 {[%emt 0:00:00]} 3. d4 {[%emt 0:00:13]} cxd4 {[%emt 0:00:00]} 4. Nxd4 {[%emt 0:00:24]} e5 {[%emt 0:00:07]} 5. Nb5 {[%emt 0:00:39]} d6 {[%emt 0:00:14]} 6. N1c3 {[%emt 0:00:47]} a6 {[%emt 0:00:14]} 7. Na3 {[%emt 0:00:39]} Be7 {[%emt 0:00:35]} 8. Nc4 {[%emt 0:02:24]} b5 {[%emt 0:00:52]} 9. Ne3 {[%emt 0:00:50]} Nf6 {[%emt 0:01:30]} 10. g3 {[%emt 0:06:01]} h5 {[%emt 0:01:24]} 11. h4 {[%emt 0:01:20]} b4 {[%emt 0:12:35]} 12. Ncd5 {[%emt 0:02:09]} Nxd5 {[%emt 0:00:31]} 13. Nxd5 {[%emt 0:03:19]} Bg4 {[%emt 0:01:42]} 14. Be2 {[%emt 0:02:01]} Nd4 {[%emt 0:13:56]} 15. Bxg4 {[%emt 0:02:19]} hxg4 {[%emt 0:00:09]} 16. Be3 {[%emt 0:05:58]} Nf3+ {[%emt 0:05:32]} 17. Kf1 {[%emt 0:01:12]} Rb8 {[%emt 0:02:54]} 18. Qd3 {[%emt 0:05:39]} a5 {[%emt 0:04:45]} 19. Kg2 {[%emt 0:09:11]} Qd7 {[%emt 0:11:28]} 20. Rad1 {[%emt 0:07:13]} Bd8 {[%emt 0:03:43]} 21. Bc1 {[%emt 0:10:16]} Bb6 {[%emt 0:03:10]} 22. Be3 {[%emt 0:06:55]} Bd8 {[%emt 0:03:08]} 23. Bc1 {[%emt 0:02:15]} Bb6 {[%emt 0:01:11]} 24. Be3 {[%emt 0:00:24]} Bd8 {[%emt 0:00:34]} 25. Bc1 {[%emt 0:05:00]} 1/2-1/2